[Event "*** Titled Tuesday Blitz"]
[Site "Chess.com"]
[Date "2019.08.06"]
[Round "9"]
[White "Bladel"]
[Black "payto1"]
[Result "0-1"]
[WhiteElo "2456"]
[BlackElo "2367"]
[TimeControl "180+2"]
[EndTime "15:07:52 PDT"]
[Termination "payto1 won by resignation"]

1. e4 {[%clk 0:03:01.9]} 1... c5 {[%clk 0:03:00.6]} 2. Nf3 {[%clk 0:03:03.3]}
2... d6 {[%clk 0:02:59.9]} 3. Bb5+ {[%clk 0:03:03.9]} 3... Nd7 {[%clk
0:03:00.3]} 4. O-O {[%clk 0:03:04.4]} 4... a6 {[%clk 0:03:00.8]} 5. Bd3 {[%clk
0:03:04.9]} 5... Ngf6 {[%clk 0:03:00]} 6. c3 {[%clk 0:03:04.8]} 6... b5 {[%clk
0:03:01]} 7. a4 {[%clk 0:03:04.9]} 7... b4 {[%clk 0:03:00.9]} 8. Re1 {[%clk
0:03:05.2]} 8... e5 {[%clk 0:03:01.2]} 9. Bc2 {[%clk 0:03:05.7]} 9... Bb7 {[%clk
0:03:02.2]} 10. d4 {[%clk 0:03:06.5]} 10... Be7 {[%clk 0:03:03.2]} 11. Nbd2
{[%clk 0:03:04.9]} 11... O-O {[%clk 0:03:03.6]} 12. Nf1 {[%clk 0:03:05.8]} 12...
Rc8 {[%clk 0:03:02.9]} 13. Ng3 {[%clk 0:03:06.3]} 13... g6 {[%clk 0:03:02.5]}
14. Bh6 {[%clk 0:03:06.2]} 14... Re8 {[%clk 0:03:03.2]} 15. Bb3 {[%clk
0:02:59.7]} 15... Ng4 {[%clk 0:02:58]} 16. Bd2 {[%clk 0:02:54.9]} 16... bxc3
{[%clk 0:02:55.1]} 17. bxc3 {[%clk 0:02:54.8]} 17... Qc7 {[%clk 0:02:56.3]} 18.
h3 {[%clk 0:02:55]} 18... Ngf6 {[%clk 0:02:55.9]} 19. dxe5 {[%clk 0:02:42.3]}
19... dxe5 {[%clk 0:02:56.2]} 20. Qc2 {[%clk 0:02:39.3]} 20... c4 {[%clk
0:02:56.6]} 21. Ba2 {[%clk 0:02:39.7]} 21... a5 {[%clk 0:02:55.9]} 22. Rab1
{[%clk 0:02:38.3]} 22... Ba6 {[%clk 0:02:56.7]} 23. Bg5 {[%clk 0:02:33]} 23...
Nc5 {[%clk 0:02:55.5]} 24. Bxf6 {[%clk 0:02:32.7]} 24... Bxf6 {[%clk 0:02:55.6]}
25. Red1 {[%clk 0:02:27.2]} 25... Nd3 {[%clk 0:02:54.8]} 26. Ne1 {[%clk
0:02:26.1]} 26... Red8 {[%clk 0:02:49]} 27. Nf1 {[%clk 0:02:22.4]} 27... Bh4
{[%clk 0:02:44.1]} 28. g3 {[%clk 0:02:21.9]} 28... Be7 {[%clk 0:02:44.1]} 29.
Ne3 {[%clk 0:02:22.4]} 29... Bc5 {[%clk 0:02:44]} 30. Qe2 {[%clk 0:02:20.6]}
30... Qa7 {[%clk 0:02:38.3]} 31. N1c2 {[%clk 0:02:13.6]} 31... Kg7 {[%clk
0:02:13.8]} 32. Kg2 {[%clk 0:02:13.8]} 32... Qa8 {[%clk 0:02:06.3]} 33. Nxc4
{[%clk 0:02:05.1]} 33... Nxf2 {[%clk 0:02:03.7]} 34. Rxd8 {[%clk 0:02:04]} 34...
Rxd8 {[%clk 0:02:04.3]} 35. Qf3 {[%clk 0:02:01.1]} 35... Qxe4 {[%clk 0:02:00.6]}
36. Qxe4 {[%clk 0:01:57.8]} 36... Nxe4 {[%clk 0:02:02]} 37. Nxe5 {[%clk
0:01:57.8]} 37... Nxc3 {[%clk 0:02:02.4]} 38. Rb2 {[%clk 0:01:52]} 38... Rd2+
{[%clk 0:01:48.9]} 39. Kh1 {[%clk 0:01:14.1]} 39... Nxa2 {[%clk 0:01:44.5]} 40.
Nf3 {[%clk 0:01:12.7]} 40... Rd1+ {[%clk 0:01:44.8]} 41. Nce1 {[%clk 0:01:11.1]}
41... Nb4 {[%clk 0:01:43.5]} 42. Kh2 {[%clk 0:01:06.9]} 42... Nd3 {[%clk
0:01:38.9]} 43. Nxd3 {[%clk 0:01:05.6]} 43... Rxd3 {[%clk 0:01:38.9]} 44. Rc2
{[%clk 0:01:02.7]} 44... Bb4 {[%clk 0:01:35.9]} 45. Ne5 {[%clk 0:01:02.1]} 45...
Rd2+ {[%clk 0:01:36.6]} 46. Rxd2 {[%clk 0:01:01.5]} 46... Bxd2 {[%clk
0:01:37.7]} 47. Nf3 {[%clk 0:01:02.3]} 47... Bb4 {[%clk 0:01:37]} 48. Kg2 {[%clk
0:01:01.7]} 48... Bb7 {[%clk 0:01:37.6]} 49. Kf2 {[%clk 0:01:01.6]} 49... Bxf3
{[%clk 0:01:39.1]} 50. Kxf3 {[%clk 0:01:01.7]} 50... f5 {[%clk 0:01:40.3]} 51.
g4 {[%clk 0:01:01.9]} 51... Kf6 {[%clk 0:01:41.4]} 0-1

[Event "*** Titled Tuesday Blitz"]
[Site "Chess.com"]
[Date "2019.08.06"]
[Round "9"]
[White "IakovUlivar"]
[Black "farzadbfd"]
[Result "0-1"]
[WhiteElo "2522"]
[BlackElo "2667"]
[TimeControl "180+2"]
[EndTime "15:08:00 PDT"]
[Termination "farzadbfd won by resignation"]

1. e4 {[%clk 0:03:01.9]} 1... e5 {[%clk 0:03:00]} 2. Nf3 {[%clk 0:03:01.7]} 2...
Nc6 {[%clk 0:03:00.9]} 3. Bc4 {[%clk 0:03:02.1]} 3... Bc5 {[%clk 0:03:01.1]} 4.
O-O {[%clk 0:03:02.3]} 4... Nf6 {[%clk 0:03:01.7]} 5. d3 {[%clk 0:03:03.2]} 5...
a6 {[%clk 0:03:02.6]} 6. a4 {[%clk 0:03:03]} 6... d6 {[%clk 0:03:03.8]} 7. c3
{[%clk 0:03:02]} 7... h6 {[%clk 0:03:03.3]} 8. Nbd2 {[%clk 0:03:00]} 8... O-O
{[%clk 0:03:04.2]} 9. Re1 {[%clk 0:02:57]} 9... Re8 {[%clk 0:03:05.1]} 10. Nf1
{[%clk 0:02:54.2]} 10... Be6 {[%clk 0:02:58]} 11. Bxe6 {[%clk 0:02:52.3]} 11...
fxe6 {[%clk 0:02:59.5]} 12. b4 {[%clk 0:02:51.5]} 12... Bb6 {[%clk 0:02:56.3]}
13. Be3 {[%clk 0:02:46.2]} 13... Bxe3 {[%clk 0:02:56.9]} 14. Nxe3 {[%clk
0:02:48.1]} 14... Ne7 {[%clk 0:02:56.5]} 15. Qb3 {[%clk 0:02:39.9]} 15... Ng6
{[%clk 0:02:55.4]} 16. g3 {[%clk 0:02:37.6]} 16... Qe7 {[%clk 0:02:54.9]} 17.
Kg2 {[%clk 0:02:28.7]} 17... Rf8 {[%clk 0:02:55.7]} 18. Nd2 {[%clk 0:02:09.2]}
18... Rf7 {[%clk 0:02:53.1]} 19. Rf1 {[%clk 0:01:46.5]} 19... Nh7 {[%clk
0:02:49]} 20. h4 {[%clk 0:01:38.4]} 20... Raf8 {[%clk 0:02:43.6]} 21. Qd1 {[%clk
0:01:31.4]} 21... Nxh4+ {[%clk 0:02:29.2]} 22. gxh4 {[%clk 0:01:33.3]} 22...
Qxh4 {[%clk 0:02:30.8]} 23. f3 {[%clk 0:01:20.3]} 23... Rf6 {[%clk 0:02:08.6]}
24. Rh1 {[%clk 0:01:11.9]} 24... Rg6+ {[%clk 0:01:48.2]} 25. Ng4 {[%clk
0:01:11.9]} 25... Qg5 {[%clk 0:01:49.6]} 26. Rh3 {[%clk 0:00:13.7]} 26... h5
{[%clk 0:01:40.9]} 27. Rg3 {[%clk 0:00:14.7]} 27... Qf4 {[%clk 0:01:31.5]} 28.
Nh6+ {[%clk 0:00:03]} 28... Qxh6 {[%clk 0:01:28.2]} 29. Nf1 {[%clk 0:00:03.8]}
29... Rxg3+ {[%clk 0:01:17.5]} 30. Nxg3 {[%clk 0:00:05.7]} 30... Ng5 {[%clk
0:01:19]} 31. Qe2 {[%clk 0:00:04.9]} 31... h4 {[%clk 0:01:08.8]} 32. Rh1 {[%clk
0:00:03.1]} 32... Rxf3 {[%clk 0:01:10.1]} 33. Nf1 {[%clk 0:00:03.6]} 33... h3+
{[%clk 0:01:09.7]} 34. Kh2 {[%clk 0:00:04.4]} 34... Qh4 {[%clk 0:01:09.2]} 35.
Rg1 {[%clk 0:00:03.9]} 35... Rf2+ {[%clk 0:01:10.2]} 36. Qxf2 {[%clk 0:00:03.8]}
36... Qxf2+ {[%clk 0:01:12.1]} 37. Kh1 {[%clk 0:00:05.6]} 37... Nf3 {[%clk
0:01:11.2]} 0-1

[Event "*** Titled Tuesday Blitz"]
[Site "Chess.com"]
[Date "2019.08.06"]
[Round "9"]
[White "Vuk2000"]
[Black "resha1988"]
[Result "1-0"]
[WhiteElo "2757"]
[BlackElo "2772"]
[TimeControl "180+2"]
[EndTime "15:08:09 PDT"]
[Termination "Vuk2000 won by resignation"]

1. d4 {[%clk 0:03:01.9]} 1... d5 {[%clk 0:03:00.7]} 2. Nf3 {[%clk 0:03:01.2]}
2... Nf6 {[%clk 0:03:01]} 3. c4 {[%clk 0:03:02.3]} 3... c6 {[%clk 0:03:01.9]} 4.
Nc3 {[%clk 0:03:03.6]} 4... dxc4 {[%clk 0:03:02.7]} 5. a4 {[%clk 0:03:03.7]}
5... e6 {[%clk 0:03:03.7]} 6. e3 {[%clk 0:03:04.1]} 6... c5 {[%clk 0:03:03.9]}
7. Bxc4 {[%clk 0:03:05]} 7... Nc6 {[%clk 0:03:05.5]} 8. O-O {[%clk 0:03:05.3]}
8... Be7 {[%clk 0:03:07]} 9. Qe2 {[%clk 0:03:05.9]} 9... cxd4 {[%clk 0:03:08.2]}
10. exd4 {[%clk 0:03:07.1]} 10... O-O {[%clk 0:03:07.7]} 11. Rd1 {[%clk
0:03:07.7]} 11... Nb4 {[%clk 0:03:08.6]} 12. Bg5 {[%clk 0:02:59.9]} 12... Bd7
{[%clk 0:03:08.9]} 13. Ne5 {[%clk 0:02:58.8]} 13... Rc8 {[%clk 0:03:06.4]} 14.
Bb3 {[%clk 0:02:46.3]} 14... Bc6 {[%clk 0:03:03.2]} 15. Nxf7 {[%clk 0:02:26.9]}
15... Rxf7 {[%clk 0:02:56.9]} 16. Bxe6 {[%clk 0:02:26.4]} 16... Kf8 {[%clk
0:01:59.4]} 17. Bxc8 {[%clk 0:01:19.1]} 17... Qxc8 {[%clk 0:01:57]} 18. Rac1
{[%clk 0:01:10.7]} 18... Qf5 {[%clk 0:01:43.9]} 19. Qe5 {[%clk 0:01:01.3]} 19...
Qg4 {[%clk 0:01:05.6]} 20. d5 {[%clk 0:00:49.7]} 20... Nfxd5 {[%clk 0:00:49.4]}
21. Nxd5 {[%clk 0:00:50.7]} 21... Bxg5 {[%clk 0:00:32.7]} 22. Qb8+ {[%clk
0:00:40.7]} 22... Be8 {[%clk 0:00:25.2]} 23. Re1 {[%clk 0:00:41.8]} 23... Be7
{[%clk 0:00:15.4]} 24. Nxe7 {[%clk 0:00:35.8]} 24... Rxe7 {[%clk 0:00:17.3]} 25.
Rxe7 {[%clk 0:00:24.6]} 25... Kxe7 {[%clk 0:00:19.2]} 26. Qe5+ {[%clk
0:00:24.9]} 26... Kf8 {[%clk 0:00:17]} 27. Qd6+ {[%clk 0:00:25.8]} 27... Kg8
{[%clk 0:00:16.3]} 28. Re1 {[%clk 0:00:26.7]} 28... Bd7 {[%clk 0:00:08.7]} 29.
h3 {[%clk 0:00:22.2]} 1-0

[Event "*** Titled Tuesday Blitz"]
[Site "Chess.com"]
[Date "2019.08.06"]
[Round "9"]
[White "S-Fazulyanov"]
[Black "oezs95"]
[Result "1/2-1/2"]
[WhiteElo "2427"]
[BlackElo "2379"]
[TimeControl "180+2"]
[EndTime "15:08:13 PDT"]
[Termination "Game drawn by repetition"]

1. d4 {[%clk 0:03:01.9]} 1... Nf6 {[%clk 0:03:00.3]} 2. c4 {[%clk 0:03:02.3]}
2... e6 {[%clk 0:03:01.3]} 3. Nf3 {[%clk 0:03:02.7]} 3... b6 {[%clk 0:03:02.1]}
4. g3 {[%clk 0:03:02.9]} 4... Ba6 {[%clk 0:03:00.3]} 5. b3 {[%clk 0:03:02.6]}
5... Bb4+ {[%clk 0:02:59.8]} 6. Bd2 {[%clk 0:03:03.1]} 6... Be7 {[%clk
0:03:01.3]} 7. Bg2 {[%clk 0:03:01.4]} 7... d5 {[%clk 0:03:02.7]} 8. O-O {[%clk
0:03:00.8]} 8... Nbd7 {[%clk 0:03:00.7]} 9. Qc2 {[%clk 0:03:00.5]} 9... O-O
{[%clk 0:02:58.2]} 10. Bf4 {[%clk 0:02:59.3]} 10... Rc8 {[%clk 0:02:44.8]} 11.
Nc3 {[%clk 0:02:57.1]} 11... c5 {[%clk 0:02:21]} 12. cxd5 {[%clk 0:02:53.1]}
12... cxd4 {[%clk 0:02:02]} 13. Nxd4 {[%clk 0:02:52.3]} 13... Nxd5 {[%clk
0:01:54.9]} 14. Bxd5 {[%clk 0:02:50.2]} 14... exd5 {[%clk 0:01:55.3]} 15. Qb2
{[%clk 0:02:40.7]} 15... Nf6 {[%clk 0:01:30.1]} 16. Rac1 {[%clk 0:02:38.1]}
16... Qd7 {[%clk 0:01:29.8]} 17. Rfd1 {[%clk 0:02:37.9]} 17... Rfe8 {[%clk
0:01:22.7]} 18. Kg2 {[%clk 0:02:34.3]} 18... h5 {[%clk 0:01:20.7]} 19. a4 {[%clk
0:02:10.5]} 19... h4 {[%clk 0:01:04.3]} 20. Ncb5 {[%clk 0:02:08.4]} 20... h3+
{[%clk 0:01:01.4]} 21. Kg1 {[%clk 0:02:06.8]} 21... Bc5 {[%clk 0:00:55.5]} 22.
b4 {[%clk 0:02:03]} 22... Bxd4 {[%clk 0:00:44.5]} 23. Nxd4 {[%clk 0:02:03.5]}
23... Rxc1 {[%clk 0:00:41.2]} 24. Rxc1 {[%clk 0:02:03.4]} 24... Bc4 {[%clk
0:00:31.2]} 25. b5 {[%clk 0:02:01.4]} 25... Ne4 {[%clk 0:00:24.6]} 26. f3 {[%clk
0:01:43.6]} 26... Nc5 {[%clk 0:00:24.4]} 27. Qc2 {[%clk 0:01:42.4]} 27... a6
{[%clk 0:00:14.3]} 28. Rb1 {[%clk 0:01:31.1]} 28... axb5 {[%clk 0:00:14.6]} 29.
axb5 {[%clk 0:01:30.9]} 29... Ra8 {[%clk 0:00:14.7]} 30. Qc3 {[%clk 0:01:28.2]}
30... Ra2 {[%clk 0:00:12.8]} 31. Qe3 {[%clk 0:01:27.4]} 31... Ne6 {[%clk
0:00:07.3]} 32. Be5 {[%clk 0:01:23.2]} 32... Nxd4 {[%clk 0:00:07.3]} 33. Bxd4
{[%clk 0:01:21]} 33... Rxe2 {[%clk 0:00:07.7]} 34. Qg5 {[%clk 0:01:22]} 34... f6
{[%clk 0:00:07.6]} 35. Bxf6 {[%clk 0:01:23.1]} 35... Qf7 {[%clk 0:00:08.4]} 36.
Bd4 {[%clk 0:01:19.2]} 36... Rg2+ {[%clk 0:00:09.5]} 37. Kh1 {[%clk 0:01:19.7]}
37... Rb2 {[%clk 0:00:07.2]} 38. Qd8+ {[%clk 0:01:15]} 38... Kh7 {[%clk
0:00:07.7]} 39. Qh4+ {[%clk 0:01:12.5]} 39... Kg8 {[%clk 0:00:08.5]} 40. Qd8+
{[%clk 0:01:11.2]} 40... Kh7 {[%clk 0:00:09.5]} 41. Qh4+ {[%clk 0:01:11.3]}
41... Kg8 {[%clk 0:00:05.8]} 42. Qd8+ {[%clk 0:01:11.8]} 1/2-1/2

[Event "*** Titled Tuesday Blitz"]
[Site "Chess.com"]
[Date "2019.08.06"]
[Round "9"]
[White "underdogchss"]
[Black "12teen"]
[Result "0-1"]
[WhiteElo "2512"]
[BlackElo "2649"]
[TimeControl "180+2"]
[EndTime "15:08:15 PDT"]
[Termination "12teen won by resignation"]

1. d4 {[%clk 0:02:49]} 1... a6 {[%clk 0:03:00.9]} 2. g3 {[%clk 0:02:47.5]} 2...
b5 {[%clk 0:03:02.8]} 3. Bg2 {[%clk 0:02:48.8]} 3... d5 {[%clk 0:03:04.1]} 4. a4
{[%clk 0:02:49.5]} 4... b4 {[%clk 0:03:03]} 5. Nd2 {[%clk 0:02:50.1]} 5... Bb7
{[%clk 0:03:01.6]} 6. a5 {[%clk 0:02:49.4]} 6... Nf6 {[%clk 0:03:00.8]} 7. Ngf3
{[%clk 0:02:48.4]} 7... e6 {[%clk 0:03:01.4]} 8. O-O {[%clk 0:02:47.8]} 8...
Nbd7 {[%clk 0:03:03]} 9. c4 {[%clk 0:02:41.8]} 9... bxc3 {[%clk 0:02:59.3]} 10.
bxc3 {[%clk 0:02:42.7]} 10... c5 {[%clk 0:03:00.8]} 11. Qa4 {[%clk 0:02:39.5]}
11... Qc7 {[%clk 0:02:56.9]} 12. Ne5 {[%clk 0:02:39.3]} 12... Bd6 {[%clk
0:02:57.3]} 13. Nxd7 {[%clk 0:02:25.3]} 13... Nxd7 {[%clk 0:02:54.5]} 14. e4
{[%clk 0:02:22]} 14... O-O {[%clk 0:02:51.2]} 15. e5 {[%clk 0:02:18.3]} 15...
Be7 {[%clk 0:02:50.9]} 16. Ba3 {[%clk 0:02:17.9]} 16... Bc6 {[%clk 0:02:40.2]}
17. Qd1 {[%clk 0:02:17.1]} 17... Rfb8 {[%clk 0:02:39]} 18. c4 {[%clk 0:02:11.9]}
18... dxc4 {[%clk 0:02:30.8]} 19. Nxc4 {[%clk 0:01:56.8]} 19... Bxg2 {[%clk
0:02:23.5]} 20. Kxg2 {[%clk 0:01:58.7]} 20... cxd4 {[%clk 0:02:14]} 21. Qxd4
{[%clk 0:01:14.1]} 21... Bxa3 {[%clk 0:02:09.1]} 22. Rxa3 {[%clk 0:01:15]} 22...
Rb5 {[%clk 0:02:03.9]} 23. Qe4 {[%clk 0:00:59.7]} 23... Rc8 {[%clk 0:01:55.6]}
24. Rd1 {[%clk 0:00:39.3]} 24... Rb4 {[%clk 0:01:24.7]} 25. Rc3 {[%clk
0:00:17.1]} 25... Nc5 {[%clk 0:01:15.2]} 26. Qf3 {[%clk 0:00:10.6]} 26... Na4
{[%clk 0:01:06.5]} 27. Rcd3 {[%clk 0:00:11.5]} 27... Nc5 {[%clk 0:00:59.8]} 28.
Rd4 {[%clk 0:00:08.5]} 28... Rb3 {[%clk 0:00:53]} 29. Nb6 {[%clk 0:00:07.9]}
29... Rxf3 {[%clk 0:00:46.3]} 30. Nxc8 {[%clk 0:00:07.1]} 30... Rd3 {[%clk
0:00:45.6]} 31. R1xd3 {[%clk 0:00:06.1]} 31... Nxd3 {[%clk 0:00:46.6]} 32. Nb6
{[%clk 0:00:04.8]} 32... Nxe5 {[%clk 0:00:44.5]} 33. f4 {[%clk 0:00:04.9]} 33...
Ng6 {[%clk 0:00:42]} 34. Rc4 {[%clk 0:00:05.7]} 34... Qb7+ {[%clk 0:00:42.5]}
35. Kh3 {[%clk 0:00:07.3]} 35... Ne7 {[%clk 0:00:43.7]} 36. Rd4 {[%clk
0:00:07.9]} 36... g6 {[%clk 0:00:42.5]} 37. Kh4 {[%clk 0:00:08.4]} 37... Nf5+
{[%clk 0:00:43.1]} 0-1

[Event "*** Titled Tuesday Blitz"]
[Site "Chess.com"]
[Date "2019.08.06"]
[Round "9"]
[White "Vadim_Biliy"]
[Black "colegiodemadrid"]
[Result "1/2-1/2"]
[WhiteElo "2212"]
[BlackElo "2334"]
[TimeControl "180+2"]
[EndTime "15:08:19 PDT"]
[Termination "Game drawn by agreement"]

1. d4 {[%clk 0:03:01.9]} 1... Nf6 {[%clk 0:03:00.4]} 2. Nf3 {[%clk 0:03:02.6]}
2... g6 {[%clk 0:02:59.7]} 3. e3 {[%clk 0:03:04.1]} 3... Bg7 {[%clk 0:03:00.7]}
4. Be2 {[%clk 0:03:05.7]} 4... O-O {[%clk 0:03:02.2]} 5. O-O {[%clk 0:03:07.2]}
5... d6 {[%clk 0:03:02.3]} 6. b3 {[%clk 0:03:07.9]} 6... e5 {[%clk 0:02:59.1]}
7. Bb2 {[%clk 0:03:06.7]} 7... e4 {[%clk 0:02:58.7]} 8. Nfd2 {[%clk 0:03:03.7]}
8... d5 {[%clk 0:03:00.1]} 9. f3 {[%clk 0:02:58.7]} 9... exf3 {[%clk 0:02:59.8]}
10. Nxf3 {[%clk 0:02:57.9]} 10... Re8 {[%clk 0:03:00]} 11. Ne5 {[%clk
0:02:53.1]} 11... Nbd7 {[%clk 0:02:56.7]} 12. Nd2 {[%clk 0:02:53.1]} 12... Nxe5
{[%clk 0:02:54.5]} 13. dxe5 {[%clk 0:02:53.3]} 13... Nd7 {[%clk 0:02:55.8]} 14.
Nf3 {[%clk 0:02:41.6]} 14... Nxe5 {[%clk 0:02:55.6]} 15. Nxe5 {[%clk 0:02:38.6]}
15... Bxe5 {[%clk 0:02:56.5]} 16. Bxe5 {[%clk 0:02:39.6]} 16... Rxe5 {[%clk
0:02:58.2]} 17. Bf3 {[%clk 0:02:36.6]} 17... Rxe3 {[%clk 0:02:41]} 18. Bxd5
{[%clk 0:02:29.4]} 18... Be6 {[%clk 0:02:41.2]} 19. Bxe6 {[%clk 0:02:26.1]}
19... Rxe6 {[%clk 0:02:40.1]} 20. Qxd8+ {[%clk 0:02:25.9]} 20... Rxd8 {[%clk
0:02:40.7]} 21. Rf2 {[%clk 0:02:24.4]} 21... Kg7 {[%clk 0:02:38.6]} 22. g3
{[%clk 0:02:24.7]} 22... f5 {[%clk 0:02:38.2]} 23. Kg2 {[%clk 0:02:20.2]} 23...
h5 {[%clk 0:02:39.5]} 24. c4 {[%clk 0:02:18.2]} 24... Rd3 {[%clk 0:02:39.9]} 25.
Rc1 {[%clk 0:02:17.2]} 25... c5 {[%clk 0:02:39.7]} 26. Rcc2 {[%clk 0:02:14.7]}
26... Re4 {[%clk 0:02:37.2]} 27. Rcd2 {[%clk 0:02:15.2]} 27... Ree3 {[%clk
0:02:31.5]} 28. Rxd3 {[%clk 0:02:15.5]} 28... Rxd3 {[%clk 0:02:33.4]} 29. Re2
{[%clk 0:02:15]} 29... Kf7 {[%clk 0:02:34.7]} 30. Re5 {[%clk 0:02:10.9]} 30...
b6 {[%clk 0:02:34.6]} 31. Re2 {[%clk 0:02:11.1]} 31... a6 {[%clk 0:02:35.1]} 32.
Kf2 {[%clk 0:02:05.9]} 32... Rd4 {[%clk 0:02:30.7]} 33. Kf3 {[%clk 0:02:05.6]}
33... h4 {[%clk 0:02:31.2]} 34. Rc2 {[%clk 0:01:56.2]} 34... hxg3 {[%clk
0:02:20.1]} 35. hxg3 {[%clk 0:01:56.3]} 35... g5 {[%clk 0:02:21.6]} 36. Kg2
{[%clk 0:01:52.3]} 36... Rd3 {[%clk 0:02:20.1]} 37. Rf2 {[%clk 0:01:51.1]} 37...
Kf6 {[%clk 0:02:19.7]} 38. Re2 {[%clk 0:01:51.8]} 38... Rc3 {[%clk 0:02:18]} 39.
Rd2 {[%clk 0:01:51.6]} 39... Ke5 {[%clk 0:02:14.3]} 40. Re2+ {[%clk 0:01:48.4]}
40... Kd4 {[%clk 0:02:13.7]} 41. Rf2 {[%clk 0:01:48.4]} 41... Ke4 {[%clk
0:02:13.1]} 42. Re2+ {[%clk 0:01:49.4]} 42... Re3 {[%clk 0:02:14.5]} 43. Rd2
{[%clk 0:01:48.3]} 43... b5 {[%clk 0:02:13.3]} 44. Rc2 {[%clk 0:01:43.9]} 44...
b4 {[%clk 0:02:13.4]} 45. Rd2 {[%clk 0:01:44.6]} 45... a5 {[%clk 0:02:14]} 46.
Rd5 {[%clk 0:01:39.2]} 46... Re2+ {[%clk 0:02:14.3]} 47. Kh3 {[%clk 0:01:38.9]}
47... Rxa2 {[%clk 0:02:10.7]} 48. Rxc5 {[%clk 0:01:39.9]} 48... a4 {[%clk
0:02:11.3]} 49. bxa4 {[%clk 0:01:38.6]} 49... Rxa4 {[%clk 0:02:06.2]} 50. Rb5
{[%clk 0:01:39.4]} 50... b3 {[%clk 0:02:04.3]} 51. Rxb3 {[%clk 0:01:39.2]} 51...
Rxc4 {[%clk 0:02:05.8]} 52. Ra3 {[%clk 0:01:39]} 52... Rb4 {[%clk 0:02:04.6]}
53. Rc3 {[%clk 0:01:38.7]} 53... Rd4 {[%clk 0:02:05.8]} 54. Ra3 {[%clk
0:01:39.3]} 54... f4 {[%clk 0:02:03.1]} 55. gxf4 {[%clk 0:01:37.4]} 55... gxf4
{[%clk 0:02:02.8]} 56. Kg4 {[%clk 0:01:38.2]} 56... Rd8 {[%clk 0:01:56.9]} 57.
Ra4+ {[%clk 0:01:37.7]} 57... Ke3 {[%clk 0:01:57.7]} 58. Ra3+ {[%clk 0:01:38.6]}
58... Ke4 {[%clk 0:01:58]} 59. Ra4+ {[%clk 0:01:39.6]} 59... Ke3 {[%clk
0:01:59.6]} 60. Ra3+ {[%clk 0:01:40.5]} 60... Kf2 {[%clk 0:02:00.4]} 61. Kxf4
{[%clk 0:01:40.1]} 61... Rd4+ {[%clk 0:02:01.9]} 62. Ke5 {[%clk 0:01:40.9]}
62... Rb4 {[%clk 0:02:03.2]} 63. Rh3 {[%clk 0:01:39.6]} 63... Rb8 {[%clk
0:02:02.5]} 64. Kd6 {[%clk 0:01:38.7]} 64... Rb5 {[%clk 0:02:02.4]} 65. Kc6
{[%clk 0:01:38.9]} 65... Rg5 {[%clk 0:02:02.6]} 66. Kd6 {[%clk 0:01:38.9]} 66...
Kg2 {[%clk 0:02:03.4]} 67. Ra3 {[%clk 0:01:38.6]} 67... Rb5 {[%clk 0:02:04.1]}
68. Kc6 {[%clk 0:01:39.2]} 68... Rh5 {[%clk 0:02:05.2]} 69. Kd6 {[%clk
0:01:40.3]} 69... Rb5 {[%clk 0:02:05.6]} 70. Kc6 {[%clk 0:01:41]} 70... Rb8
{[%clk 0:02:07.1]} 71. Kc7 {[%clk 0:01:40.9]} 71... Rb2 {[%clk 0:02:08.5]} 72.
Kc6 {[%clk 0:01:41.5]} 72... Kf2 {[%clk 0:02:08.9]} 73. Kc5 {[%clk 0:01:40.5]}
73... Ke2 {[%clk 0:02:10.1]} 74. Kc4 {[%clk 0:01:41]} 74... Rb8 {[%clk
0:02:11.1]} 75. Kd4 {[%clk 0:01:41.2]} 75... Rb4+ {[%clk 0:02:10.9]} 76. Kc5
{[%clk 0:01:41.9]} 76... Rb8 {[%clk 0:02:12.6]} 77. Kd4 {[%clk 0:01:42.4]}
1/2-1/2

[Event "*** Titled Tuesday Blitz"]
[Site "Chess.com"]
[Date "2019.08.06"]
[Round "9"]
[White "AliKa2810"]
[Black "daro94"]
[Result "1-0"]
[WhiteElo "2590"]
[BlackElo "2672"]
[TimeControl "180+2"]
[EndTime "15:08:20 PDT"]
[Termination "AliKa2810 won by checkmate"]

1. c4 {[%clk 0:03:01.1]} 1... Nf6 {[%clk 0:02:59.5]} 2. Nc3 {[%clk 0:03:01.6]}
2... e5 {[%clk 0:02:59]} 3. Nf3 {[%clk 0:02:58.7]} 3... Nc6 {[%clk 0:03:00.4]}
4. g3 {[%clk 0:02:58.4]} 4... g6 {[%clk 0:03:01.4]} 5. Bg2 {[%clk 0:02:59]} 5...
Bg7 {[%clk 0:03:02.9]} 6. O-O {[%clk 0:02:59.7]} 6... O-O {[%clk 0:03:04.5]} 7.
d4 {[%clk 0:02:56.4]} 7... exd4 {[%clk 0:02:55.7]} 8. Nxd4 {[%clk 0:02:57.1]}
8... Re8 {[%clk 0:02:57.6]} 9. Nxc6 {[%clk 0:02:43.2]} 9... bxc6 {[%clk
0:02:57.3]} 10. Qd3 {[%clk 0:02:41.5]} 10... a5 {[%clk 0:02:57.5]} 11. b3 {[%clk
0:02:41.8]} 11... Ba6 {[%clk 0:02:51.8]} 12. Bb2 {[%clk 0:02:17.8]} 12... d5
{[%clk 0:02:51.8]} 13. Rad1 {[%clk 0:02:16.1]} 13... Rb8 {[%clk 0:02:47.5]} 14.
Qc2 {[%clk 0:02:13.9]} 14... Qe7 {[%clk 0:02:48.1]} 15. Rfe1 {[%clk 0:02:08.1]}
15... dxc4 {[%clk 0:02:42.7]} 16. Bxc6 {[%clk 0:02:01.6]} 16... cxb3 {[%clk
0:02:44.1]} 17. axb3 {[%clk 0:02:02.2]} 17... Red8 {[%clk 0:02:45.6]} 18. Nd5
{[%clk 0:01:56.4]} 18... Nxd5 {[%clk 0:02:46]} 19. Bxd5 {[%clk 0:01:57.8]} 19...
Bxb2 {[%clk 0:02:44.3]} 20. Qxb2 {[%clk 0:01:58.6]} 20... Rb6 {[%clk 0:02:30.1]}
21. Qc3 {[%clk 0:01:51.8]} 21... Rbd6 {[%clk 0:02:21.9]} 22. Qxa5 {[%clk
0:01:44.2]} 22... Bb7 {[%clk 0:02:23.1]} 23. Qb4 {[%clk 0:01:28.7]} 23... c6
{[%clk 0:01:24.1]} 24. Bf3 {[%clk 0:01:28]} 24... c5 {[%clk 0:01:00.4]} 25. Qxc5
{[%clk 0:01:20.9]} 25... Rxd1 {[%clk 0:01:00]} 26. Qxe7 {[%clk 0:01:21.5]} 26...
Rxe1+ {[%clk 0:01:00.2]} 27. Kg2 {[%clk 0:01:22.7]} 27... Bxf3+ {[%clk
0:00:58.6]} 28. Kxf3 {[%clk 0:01:23.7]} 28... Rb8 {[%clk 0:00:47.7]} 29. b4
{[%clk 0:01:16.8]} 29... Rb1 {[%clk 0:00:48.2]} 30. h4 {[%clk 0:01:17.9]} 30...
h5 {[%clk 0:00:45.5]} 31. Kf4 {[%clk 0:01:04.5]} 31... R1xb4+ {[%clk 0:00:27.3]}
32. e4 {[%clk 0:00:57.5]} 32... R4b7 {[%clk 0:00:23.3]} 33. Qc5 {[%clk
0:00:48.3]} 33... Rb5 {[%clk 0:00:20]} 34. Qc6 {[%clk 0:00:49.3]} 34... R5b6
{[%clk 0:00:21.2]} 35. Qd5 {[%clk 0:00:49.5]} 35... Rf6+ {[%clk 0:00:18.9]} 36.
Kg5 {[%clk 0:00:48.2]} 36... Rxf2 {[%clk 0:00:06.4]} 37. Kh6 {[%clk 0:00:47.2]}
37... Rf6 {[%clk 0:00:03.2]} 38. Qe5 {[%clk 0:00:47.6]} 38... Rbb6 {[%clk
0:00:02.5]} 39. Qe8# {[%clk 0:00:48.3]} 1-0